fUSD/lending_fUSD_20240628
["ID","MTS","AMOUNT","RATE_DAILY","PERIOD"]
[330590032,1719600013549,-343.56587168,0.00043682,30]
[330590033,1719600013582,-1000.0,0.00043683,30]
[330590034,1719600013617,-293.81022576,0.0004369,30]
[330590035,1719600013652,-981.97456039,0.00043693,30]
[330590036,1719600013689,-293.81022576,0.00043697,30]
[330590037,1719600013726,-716.52572998,0.00043697,30]
[330590038,1719600013762,-997.07319149,0.000437,33]
[330590039,1719600013798,-287.36369513,0.00043717,30]
[330590040,1719600013835,-293.81022576,0.00043718,30]
[330590041,1719600013872,-716.52572998,0.0004372,30]
[330590042,1719600013908,-1000.0,0.00043734,30]
[330590043,1719600013941,-464.33394173,0.00043737,30]
[330590044,1719600013976,-155.75150186,0.00043738,30]
[330590045,1719600014009,-690.02060578,0.00043747,30]
[330590046,1719600014044,-490.66778432,0.00043748,120]
[330590047,1719600014078,-981.97456039,0.00043748,30]
[330590048,1719600014115,-287.36369513,0.00043748,30]
[330590049,1719600014150,-2000.0,0.00043781,30]
[330590050,1719600014186,-617.2772037,0.00043781,30]
[330590051,1719600014221,-228.57063521,0.00043782,30]
[330590052,1719600014258,-690.02060578,0.00043783,30]
[330590053,1719600014293,-1000.0,0.00043785,30]
[330590054,1719600014329,-617.2772037,0.00043786,30]
[330590055,1719600014366,-690.02060578,0.0004379,30]
[330590056,1719600014401,-464.75209546,0.000438,30]
[330590057,1719600014437,-161.87,0.000438,120]
[330590058,1719600014470,-697.60555327,0.000438,120]
[330590059,1719600014506,-154.02,0.000438,36]
[330590060,1719600014541,-154.02,0.000438,36]
[330590061,1719600014577,-154.02,0.000438,36]
[330590062,1719600014614,-154.02,0.000438,36]
[330590063,1719600014651,-154.02,0.000438,36]
[330590064,1719600014689,-154.02,0.000438,36]
[330590065,1719600014726,-154.02,0.000438,36]
[330590066,1719600014761,-1276.35942145,0.00043802,30]
[330590067,1719600014798,-228.57063521,0.00043827,30]
[330590068,1719600014832,-1314.48,0.00043835,90]
[330590069,1719600014866,-840.41,0.00043835,30]
[330590070,1719600014900,-1142.9,0.00043835,120]
[330590071,1719600014936,-500.0,0.00043835,30]
[330590072,1719600014976,-674.96700971,0.00043835,120]
[330590073,1719600015013,-500.0,0.00043835,120]
[330590074,1719600015049,-500.0,0.00043835,120]
[330590075,1719600015085,-500.0,0.00043835,120]
[330590076,1719600015119,-500.0,0.00043835,120]
[330590077,1719600015155,-500.0,0.00043835,120]
[330590078,1719600015191,-509.68686672,0.00043835,120]
[330590079,1719600015230,-999.0,0.00043835,120]
[330590080,1719600015266,-515.89,0.00043835,120]
[330590081,1719600015304,-515.89,0.00043835,120]
[330590082,1719600015341,-515.89,0.00043835,120]
[330590083,1719600015378,-515.89,0.00043835,120]
[330590084,1719600015416,-515.89,0.00043835,120]
[330590085,1719600015455,-515.89,0.00043835,120]
[330590086,1719600015494,-515.89,0.00043835,120]
[330590087,1719600015530,-515.89,0.00043835,120]
[330590088,1719600015566,-515.89,0.00043835,120]
[330590089,1719600015600,-515.89,0.00043835,120]
[330590090,1719600015635,-515.89,0.00043835,120]
[330590091,1719600015672,-515.89,0.00043835,120]
[330590092,1719600015707,-515.89,0.00043835,120]
[330590093,1719600015743,-515.89,0.00043835,120]
[330590094,1719600015780,-515.89,0.00043835,120]
[330590095,1719600015817,-515.89,0.00043835,120]
[330590096,1719600015852,-515.89,0.00043835,120]
[330590097,1719600015886,-515.89,0.00043835,120]
[330590098,1719600015920,-515.89,0.00043835,120]
[330590099,1719600015952,-515.89,0.00043835,120]
[330590100,1719600015986,-515.89,0.00043835,120]
[330590101,1719600016021,-515.89,0.00043835,120]
[330590102,1719600016056,-515.89,0.00043835,120]
[330590103,1719600016091,-515.89755272,0.00043835,120]
[330590104,1719600016124,-1109.92438089,0.00043836,30]
[330590105,1719600016157,-2100.0,0.00043872,30]
[330590106,1719600016197,-2600.0,0.00043872,30]
[330590107,1719600016234,-544.52981216,0.00043872,30]
[330590108,1719600016269,-878.98953146,0.00043872,30]
[330590109,1719600016301,-1105.81277412,0.0004388,30]
[330590110,1719600016333,-228.57063522,0.00043886,30]
[330590111,1719600016364,-7054.13,0.00043939,30]
[330590112,1719600016397,-7054.13,0.00043939,30]
[330590113,1719600016436,-2000.0,0.00044,120]
[330590114,1719600016472,-164.73213251,0.00044,30]
[330590115,1719600016506,-2951.29578665,0.00044,30]
[330590116,1719600016540,-1000.0,0.00044,120]
[330590117,1719600016575,-679.787612,0.00044,57]
[330590118,1719600016610,-156.39906771,0.00044011,30]
[330590119,1719600016645,-197.47651852,0.00044013,30]
[330590120,1719600016680,-343.56587182,0.00044041,30]
[330590121,1719600016713,-1276.3594215,0.00044053,30]
[330590122,1719600016747,-930.0,0.00044066,30]
[330590123,1719600016781,-464.33394173,0.00044068,30]
[330590124,1719600016817,-2495.51,0.00044109,106]
[330590125,1719600016852,-2159.54,0.00044109,120]
[330590126,1719600016888,-999.0,0.00044109,120]
[330590127,1719600016923,-1120.44755864,0.000442,120]
[330590128,1719600016958,-1120.44755864,0.000442,120]
[330590129,1719600016993,-1120.44755864,0.000442,120]
[330590130,1719600017029,-1120.44755864,0.000442,120]
[330590131,1719600017065,-1120.44755864,0.000442,120]
[330590132,1719600017098,-7054.13,0.00044212,30]
[330590133,1719600017130,-7054.13,0.00044212,30]
[330590134,1719600017375,-840.41,0.00044246,30]
[330590135,1719600017412,-2166.46638259,0.00044247,30]
[330590136,1719600017449,-172.27777778,0.00044274,120]
[330590137,1719600017484,-207.2920081,0.00044286,30]
[330590138,1719600017518,-154.79204592,0.00044321,30]
[330590139,1719600017554,-170.91545054,0.00044343,30]
[330590140,1719600017590,-197.47651852,0.00044351,30]
[330590141,1719600017625,-156.08004412,0.0004438,120]
[330590142,1719600017661,-156.08004412,0.0004438,120]
[330590143,1719600017698,-156.08004412,0.0004438,120]
[330590144,1719600017734,-156.58,0.0004438,120]
[330590145,1719600017770,-218.0238261,0.0004438,120]
[330590146,1719600017806,-218.0238261,0.0004438,120]
[330590147,1719600017841,-218.0238261,0.0004438,120]
[330590148,1719600017877,-218.0238261,0.0004438,120]
[330590149,1719600017912,-218.0238261,0.0004438,120]
[330590150,1719600017948,-218.0238261,0.0004438,120]
[330590151,1719600017984,-218.0238261,0.0004438,120]
[330590152,1719600018021,-218.0238261,0.0004438,120]
[330590153,1719600018057,-218.0238261,0.0004438,120]
[330590154,1719600018093,-218.0238261,0.0004438,120]
[330590155,1719600018128,-218.0238261,0.0004438,120]
[330590156,1719600018162,-218.0238261,0.0004438,120]
[330590157,1719600018203,-218.0238261,0.0004438,120]
[330590158,1719600018239,-218.0238261,0.0004438,120]
[330590159,1719600018278,-218.0238261,0.0004438,120]
[330590160,1719600018314,-218.0238261,0.0004438,120]
[330590161,1719600018350,-218.0238261,0.0004438,120]
[330590162,1719600018385,-218.0238261,0.0004438,120]
[330590163,1719600018426,-218.0238261,0.0004438,120]
[330590164,1719600018462,-218.52,0.0004438,120]
[330590165,1719600018502,-872.17030439,0.0004438,120]
[330590166,1719600018537,-872.17030439,0.0004438,120]
[330590167,1719600018572,-872.17030439,0.0004438,120]
[330590168,1719600018606,-872.17030439,0.0004438,120]
[330590169,1719600018642,-872.17030439,0.0004438,120]
[330590170,1719600018677,-872.17030439,0.0004438,120]
[330590171,1719600018712,-872.17030439,0.0004438,120]
[330590172,1719600018748,-872.17030439,0.0004438,120]
[330590173,1719600018782,-872.17030439,0.0004438,120]
[330590174,1719600018817,-872.17030439,0.0004438,120]
[330590175,1719600018851,-872.17030439,0.0004438,120]
[330590176,1719600018888,-872.17030439,0.0004438,120]
[330590177,1719600018923,-872.17030439,0.0004438,120]
[330590178,1719600018961,-872.17030439,0.0004438,120]
[330590179,1719600018999,-872.17030439,0.0004438,120]
[330590180,1719600019034,-872.17030439,0.0004438,120]
[330590181,1719600019070,-872.17030439,0.0004438,120]
[330590182,1719600019105,-872.17030439,0.0004438,120]
[330590183,1719600019140,-872.17030439,0.0004438,120]
[330590184,1719600019177,-872.67,0.0004438,120]
[330590185,1719600019212,-182.85316483,0.0004438,120]
[330590186,1719600019254,-182.85316483,0.0004438,120]
[330590187,1719600019291,-182.85316483,0.0004438,120]
[330590188,1719600019325,-182.85316483,0.0004438,120]
[330590189,1719600019360,-182.85316483,0.0004438,120]
[330590190,1719600019397,-182.85316483,0.0004438,120]
[330590191,1719600019434,-182.85316483,0.0004438,120]
[330590192,1719600019469,-182.85316483,0.0004438,120]
[330590193,1719600019502,-182.85316483,0.0004438,120]
[330590194,1719600019536,-182.85316483,0.0004438,120]
[330590195,1719600019570,-182.85316483,0.0004438,120]
[330590196,1719600019606,-182.85316483,0.0004438,120]
[330590197,1719600019641,-182.85316483,0.0004438,120]
[330590198,1719600019676,-182.85316483,0.0004438,120]
[330590199,1719600019710,-182.85316483,0.0004438,120]
[330590200,1719600019746,-182.85316483,0.0004438,120]
[330590201,1719600019781,-182.85316483,0.0004438,120]
[330590202,1719600019816,-182.85316483,0.0004438,120]
[330590203,1719600019853,-182.85316483,0.0004438,120]
[330590204,1719600019892,-183.35,0.0004438,120]
[330590205,1719600019929,-731.48765932,0.0004438,120]
[330590206,1719600019968,-731.48765932,0.0004438,120]
[330590207,1719600020003,-731.48765932,0.0004438,120]
[330590208,1719600020039,-731.48765932,0.0004438,120]
[330590209,1719600020077,-731.48765932,0.0004438,120]
[330590210,1719600020113,-731.48765932,0.0004438,120]
[330590211,1719600020148,-731.48765932,0.0004438,120]
[330590212,1719600020182,-731.48765932,0.0004438,120]
[330590213,1719600020215,-731.48765932,0.0004438,120]
[330590214,1719600020252,-731.48765932,0.0004438,120]
[330590215,1719600020286,-731.48765932,0.0004438,120]
[330590216,1719600020322,-731.48765932,0.0004438,120]
[330590217,1719600020358,-731.48765932,0.0004438,120]
[330590218,1719600020394,-731.48765932,0.0004438,120]
[330590219,1719600020432,-731.48765932,0.0004438,120]
[330590220,1719600020468,-731.48765932,0.0004438,120]
[330590221,1719600020506,-731.48765932,0.0004438,120]
[330590222,1719600020540,-731.48765932,0.0004438,120]
[330590223,1719600020573,-731.48765932,0.0004438,120]
[330590224,1719600020606,-731.98,0.0004438,120]
[330590225,1719600020640,-244.78885886,0.0004438,120]
[330590226,1719600020675,-244.78885886,0.0004438,120]
[330590227,1719600020710,-244.78885886,0.0004438,120]
[330590228,1719600020744,-244.78885886,0.0004438,120]
[330590229,1719600020779,-244.78885886,0.0004438,120]
[330590230,1719600020814,-244.78885886,0.0004438,120]
[330590231,1719600020848,-244.78885886,0.0004438,120]
[330590232,1719600020883,-244.78885886,0.0004438,120]
[330590233,1719600020916,-244.78885886,0.0004438,120]
[330590234,1719600020952,-244.78885886,0.0004438,120]
[330590235,1719600020987,-244.78885886,0.0004438,120]
[330590236,1719600021021,-244.78885886,0.0004438,120]
[330590237,1719600021055,-244.78885886,0.0004438,120]
[330590238,1719600021305,-244.78885886,0.0004438,120]
[330590239,1719600021340,-244.78885886,0.0004438,120]
[330590240,1719600021376,-244.78885886,0.0004438,120]
[330590241,1719600021412,-244.78885886,0.0004438,120]
[330590242,1719600021452,-244.78885886,0.0004438,120]
[330590243,1719600021488,-244.78885886,0.0004438,120]
[330590244,1719600021521,-245.28,0.0004438,120]
[330590245,1719600021554,-979.23043545,0.0004438,120]
[330590246,1719600021590,-979.23043545,0.0004438,120]
[330590247,1719600021625,-979.23043545,0.0004438,120]
[330590248,1719600021662,-979.23043545,0.0004438,120]
[330590249,1719600021698,-979.23043545,0.0004438,120]
[330590250,1719600021734,-979.23043545,0.0004438,120]
[330590251,1719600021770,-979.23043545,0.0004438,120]
[330590252,1719600021806,-979.23043545,0.0004438,120]
[330590253,1719600021842,-979.23043545,0.0004438,120]
[330590254,1719600021876,-979.23043545,0.0004438,120]
[330590255,1719600021912,-979.23043545,0.0004438,120]
[330590256,1719600021949,-979.23043545,0.0004438,120]
[330590257,1719600021985,-979.23043545,0.0004438,120]
[330590258,1719600022021,-979.23043545,0.0004438,120]
[330590259,1719600022056,-979.23043545,0.0004438,120]
[330590260,1719600022091,-979.23043545,0.0004438,120]
[330590261,1719600022129,-979.23043545,0.0004438,120]
[330590262,1719600022165,-979.23043545,0.0004438,120]
[330590263,1719600022205,-979.23043545,0.0004438,120]
[330590264,1719600022241,-979.73,0.0004438,120]
[330590265,1719600022279,-171.44673071,0.00044381,30]
[330590266,1719600022315,-999.0,0.00044383,120]
[330590267,1719600022351,-531.3652091,0.00044384,30]
[330590268,1719600022387,-176.54857333,0.00044384,30]
[330590269,1719600022421,-150.0,0.00044384,30]
[330590270,1719600022459,-230.41111186,0.00044384,30]
[330590271,1719600022496,-150.0,0.00044384,30]
[330590272,1719600022529,-150.0,0.00044384,30]
[330590273,1719600022562,-150.0,0.00044384,30]
[330590274,1719600022597,-150.0,0.00044384,30]
[330590275,1719600022633,-150.0,0.00044384,30]
[330590276,1719600022669,-150.0,0.00044384,30]
[330590277,1719600022705,-297.96804634,0.00044384,30]
[330590278,1719600022740,-150.0,0.00044384,30]
[330590279,1719600022776,-150.0,0.00044384,30]
[330590280,1719600022813,-150.0,0.00044384,30]
[330590281,1719600022847,-589.06,0.00044384,120]
[330590282,1719600022881,-682.66,0.00044384,120]
[330590283,1719600022916,-2100.0,0.0004442,30]
[330590284,1719600022952,-2600.0,0.0004442,30]
[330590285,1719600022987,-155.75150186,0.00044428,30]
[330590286,1719600023022,-531.3652091,0.00044433,30]
[330590287,1719600023059,-176.54857333,0.00044433,30]
[330590288,1719600023096,-230.41111186,0.00044433,30]
[330590289,1719600023133,-155.75150186,0.00044448,30]
[330590290,1719600023170,-531.3652091,0.00044483,30]
[330590291,1719600023209,-176.54857333,0.00044483,30]
[330590292,1719600023247,-230.41111186,0.00044483,30]
[330590293,1719600023286,-7054.13,0.00044485,30]
[330590294,1719600023322,-7054.13,0.00044485,30]
[330590295,1719600023357,-1039.0,0.00044492,30]
[330590296,1719600023393,-151.0,0.00044493,120]
[330590297,1719600023433,-930.0,0.00044506,30]
[330590298,1719600023470,-150.0,0.0004451,30]
[330590299,1719600023507,-150.0,0.00044513,30]
[330590300,1719600023540,-156.39906773,0.00044527,30]
[330590301,1719600023574,-531.3652091,0.00044533,30]
[330590302,1719600023610,-176.54857333,0.00044533,30]
[330590303,1719600023647,-230.41111186,0.00044533,30]
[330590304,1719600023684,-153.98406922,0.0004457,30]
[330590305,1719600023723,-531.3652091,0.00044583,30]
[330590306,1719600023759,-176.54857333,0.00044583,30]
[330590307,1719600023799,-230.41111186,0.00044583,30]
[330590308,1719600023838,-150.0,0.00044616,120]
[330590309,1719600023877,-150.0,0.00044618,120]
[330590310,1719600023915,-531.3652091,0.00044633,30]
[330590311,1719600023951,-176.54857333,0.00044633,30]
[330590312,1719600023987,-230.41111186,0.00044633,30]
[330590313,1719600024023,-150.0,0.00044636,30]
[330590314,1719600024059,-150.0,0.00044643,30]
[330590315,1719600024098,-150.0,0.00044646,120]
[330590316,1719600024136,-840.41,0.00044657,30]
[330590317,1719600024180,-2495.51,0.00044657,108]
[330590318,1719600024220,-999.0,0.00044657,120]
[330590319,1719600024265,-531.3652091,0.00044682,30]
[330590320,1719600024304,-176.54857333,0.00044682,30]
[330590321,1719600024342,-230.41111186,0.00044682,30]
[330590322,1719600024380,-2228.6,0.00044683,104]
[330590323,1719600024419,-171.44673073,0.0004471,30]
[330590324,1719600024459,-531.3652091,0.00044732,30]
[330590325,1719600024502,-176.54857333,0.00044732,30]
[330590326,1719600024541,-230.41111186,0.00044732,30]
[330590327,1719600024579,-523.02536957,0.0004474,120]
[330590328,1719600024617,-7054.13,0.00044758,30]
[330590329,1719600024655,-7054.13,0.00044758,30]
[330590330,1719600024693,-150.0,0.00044763,30]
[330590331,1719600024733,-150.0,0.00044773,30]
[330590332,1719600024771,-166.66666667,0.00044778,30]
[330590333,1719600024809,-531.3652091,0.00044782,30]
[330590334,1719600024846,-176.54857333,0.00044782,30]
[330590335,1719600024882,-230.41111186,0.00044782,30]
[330590336,1719600024923,-2166.46638259,0.00044814,30]
[330590337,1719600024963,-531.3652091,0.00044832,30]
[330590338,1719600025005,-176.54857333,0.00044832,30]
[330590339,1719600025045,-230.41111186,0.00044832,30]
[330590340,1719600025086,-166.66666668,0.00044841,30]
[330590341,1719600025127,-531.3652091,0.00044882,30]
[330590342,1719600025413,-176.54857333,0.00044882,30]
[330590343,1719600025453,-230.41111186,0.00044882,30]
[330590344,1719600025490,-155.75150186,0.00044886,30]
[330590345,1719600025527,-150.0,0.00044889,30]
[330590346,1719600025563,-15519.22962784,0.000449,60]
[330590347,1719600025597,-1608.0,0.000449,30]
[330590348,1719600025634,-150.0,0.00044903,30]
[330590349,1719600025670,-201.0,0.0004491,30]
[330590350,1719600025708,-214.0,0.0004491,30]
[330590351,1719600025747,-210.0,0.0004491,30]
[330590352,1719600025785,-2159.54,0.00044931,120]
[330590353,1719600025824,-999.0,0.00044931,120]
[330590354,1719600025863,-531.3652091,0.00044931,30]
[330590355,1719600025913,-176.54857333,0.00044931,30]
[330590356,1719600025955,-230.41111186,0.00044931,30]
[330590357,1719600025993,-155.75150186,0.00044936,30]
[330590358,1719600026033,-930.0,0.00044947,30]
[330590359,1719600026073,-959.42699708,0.00044968,30]
[330590360,1719600026111,-1146.00905021,0.00044968,30]
[330590361,1719600026149,-531.3652091,0.00044981,30]
[330590362,1719600026187,-176.54857333,0.00044981,30]
[330590363,1719600026226,-230.41111186,0.00044981,30]
[330590364,1719600026263,-172.27777778,0.00044986,120]
[330590365,1719600026300,-2166.46638259,0.00044994,30]
[330590366,1719600026339,-50000.0,0.00045,35]
[330590367,1719600026376,-490.0,0.00045,32]
[330590368,1719600026413,-191.0,0.00045,32]
[330590369,1719600026451,-1381.69761323,0.00045,30]
[330590370,1719600026492,-308.44441372,0.00045,30]
[330590371,1719600026529,-333.84526594,0.00045,30]
[330590372,1719600026565,-189.43141543,0.00045,35]
[330590373,1719600026601,-1346.86449046,0.00045,90]
[330590374,1719600026642,-2039.53581926,0.00045,30]
[330590375,1719600026679,-1239.32427938,0.00045,120]
[330590376,1719600026712,-1865.14477881,0.00045,120]
[330590377,1719600026750,-200.49629149,0.00045,120]
[330590378,1719600026794,-150.0,0.00045,85]
[330590379,1719600026832,-1942.0,0.00045,120]
[330590380,1719600026869,-2000.0,0.00045,120]
[330590381,1719600026908,-3000.0,0.00045,120]
[330590382,1719600026945,-3000.0,0.00045,120]
[330590383,1719600026982,-3000.0,0.00045,120]
[330590384,1719600027018,-2214.0,0.00045,120]
[330590385,1719600027053,-954.67463094,0.00045,30]
[330590386,1719600027088,-1443.59845876,0.00045,90]
[330590387,1719600027126,-754.999982,0.00045,120]
[330590388,1719600027167,-347.73746497,0.00045,120]
[330590389,1719600027211,-827.30958816,0.00045,45]
[330590390,1719600027257,-27796.49623343,0.00045,60]
[330590391,1719600027295,-294.59375757,0.00045,120]
[330590392,1719600027333,-150.0,0.00045016,30]
[330590393,1719600027371,-154.79204592,0.00045019,30]
[330590394,1719600027409,-531.3652091,0.00045031,30]
[330590395,1719600027448,-176.54857333,0.00045031,30]
[330590396,1719600027485,-230.41111186,0.00045031,30]
[330590397,1719600027526,-7054.13,0.00045031,30]
[330590398,1719600027565,-7054.13,0.00045031,30]
[330590399,1719600027602,-150.0,0.00045032,30]
[330590400,1719600027645,-165.87119956,0.00045042,30]
[330590401,1719600027685,-224.0,0.0004506,30]
[330590402,1719600027729,-211.0,0.0004506,30]
[330590403,1719600027766,-208.0,0.0004506,30]
[330590404,1719600027802,-213.0,0.0004506,30]
[330590405,1719600027837,-213.0,0.0004506,30]
[330590406,1719600027875,-208.0,0.0004506,30]
[330590407,1719600027913,-840.41,0.00045068,30]
[330590408,1719600027950,-531.3652091,0.00045081,30]
[330590409,1719600027987,-176.54857333,0.00045081,30]
[330590410,1719600028024,-230.41111186,0.00045081,30]
[330590411,1719600028062,-464.3339419,0.00045082,30]
[330590412,1719600028100,-150.0,0.00045088,30]
[330590413,1719600028137,-150.0,0.00045088,30]
[330590414,1719600028180,-153.98406934,0.0004509,30]
[330590415,1719600028217,-154.000164,0.000451,54]
[330590416,1719600028257,-410.0,0.00045122,60]
[330590417,1719600028296,-531.3652091,0.00045131,30]
[330590418,1719600028334,-176.54857333,0.00045131,30]
[330590419,1719600028370,-230.41111186,0.00045131,30]
[330590420,1719600028408,-1540.2735,0.0004514,30]
[330590421,1719600028447,-150.0,0.00045142,30]
[330590422,1719600028486,-150.0,0.00045162,30]
[330590423,1719600028521,-531.3652091,0.00045181,30]
[330590424,1719600028560,-176.54857333,0.00045181,30]
[330590425,1719600028597,-230.41111186,0.00045181,30]
[330590426,1719600028634,-1314.48,0.00045205,95]
[330590427,1719600028671,-2495.51,0.00045205,110]
[330590428,1719600028708,-999.0,0.00045205,120]
[330590429,1719600028746,-531.3652091,0.0004523,30]
[330590430,1719600028783,-176.54857333,0.0004523,30]
[330590431,1719600028822,-230.41111186,0.0004523,30]
[330590432,1719600028861,-150.0,0.00045269,30]
[330590433,1719600028898,-531.3652091,0.0004528,30]
[330590434,1719600028934,-176.54857333,0.0004528,30]
[330590435,1719600028974,-230.41111186,0.0004528,30]
[330590436,1719600029014,-150.0,0.00045292,30]
[330590437,1719600029057,-7054.13,0.00045305,30]
[330590438,1719600029095,-7054.13,0.00045305,30]
[330590439,1719600029135,-150.0,0.00045327,120]
[330590440,1719600029175,-531.3652091,0.0004533,30]
[330590441,1719600029216,-176.54857333,0.0004533,30]
[330590442,1719600029255,-230.41111186,0.0004533,30]
[330590443,1719600029295,-197.47651852,0.0004536,30]
[330590444,1719600029333,-2166.46638259,0.00045369,30]
[330590445,1719600029692,-150.0,0.0004537,30]
[330590446,1719600029730,-531.3652091,0.0004538,30]
[330590447,1719600029770,-176.54857333,0.0004538,30]
[330590448,1719600029808,-230.41111186,0.0004538,30]
[330590449,1719600029850,-930.0,0.00045388,30]
[330590450,1719600029888,-150.0,0.00045395,30]
[330590451,1719600029925,-207.2920081,0.00045401,30]
[330590452,1719600029962,-150.0,0.00045422,30]
[330590453,1719600030000,-531.3652091,0.0004543,30]
[330590454,1719600030037,-176.54857333,0.0004543,30]
[330590455,1719600030074,-230.41111186,0.0004543,30]
[330590456,1719600030111,-840.41,0.00045479,30]
[330590457,1719600030152,-999.0,0.00045479,120]
[330590458,1719600030191,-531.3652091,0.00045479,30]
[330590459,1719600030232,-176.54857333,0.00045479,30]
[330590460,1719600030271,-230.41111186,0.00045479,30]
[330590461,1719600030316,-341.98087618,0.000455,90]
[330590462,1719600030355,-150.0,0.00045522,30]
[330590463,1719600030394,-531.3652091,0.00045529,30]
[330590464,1719600030435,-176.54857333,0.00045529,30]
[330590465,1719600030475,-230.41111186,0.00045529,30]
[330590466,1719600030516,-150.0,0.00045551,30]
[330590467,1719600030553,-7054.13,0.00045578,30]
[330590468,1719600030590,-7054.13,0.00045578,30]
[330590469,1719600030626,-531.3652091,0.00045579,30]
[330590470,1719600030662,-176.54857333,0.00045579,30]
[330590471,1719600030699,-230.41111186,0.00045579,30]
[330590472,1719600030737,-207.2920081,0.00045607,30]
[330590473,1719600030775,-150.0,0.00045616,30]
[330590474,1719600030811,-150.0,0.00045616,30]
[330590475,1719600030847,-151.0,0.00045616,120]
[330590476,1719600030885,-531.3652091,0.00045629,30]
[330590477,1719600030922,-176.54857333,0.00045629,30]
[330590478,1719600030959,-230.41111186,0.00045629,30]
[330590479,1719600030996,-150.0,0.00045648,30]
[330590480,1719600031032,-155.75150186,0.00045675,30]
[330590481,1719600031071,-531.3652091,0.00045679,30]
[330590482,1719600031107,-176.54857333,0.00045679,30]
[330590483,1719600031141,-230.41111186,0.00045679,30]
[330590484,1719600031182,-150.0,0.00045681,30]
[330590485,1719600031220,-2166.46638277,0.00045685,30]
[330590486,1719600031259,-172.27777778,0.00045699,120]
[330590487,1719600031295,-155.75150198,0.00045703,30]
[330590488,1719600031330,-207.29200823,0.00045709,30]
[330590489,1719600031367,-154.79204603,0.00045713,30]
[330590490,1719600031407,-531.3652091,0.00045728,30]
[330590491,1719600031447,-176.54857333,0.00045728,30]
[330590492,1719600031482,-230.41111186,0.00045728,30]
[330590493,1719600031516,-2495.51,0.00045753,112]
[330590494,1719600031551,-2159.54,0.00045753,120]
[330590495,1719600031586,-999.0,0.00045753,120]
[330590496,1719600031622,-150.0,0.00045774,30]
[330590497,1719600031659,-531.3652091,0.00045778,30]
[330590498,1719600031697,-176.54857333,0.00045778,30]
[330590499,1719600031735,-230.41111186,0.00045778,30]
[330590500,1719600031772,-150.0,0.00045793,30]
[330590501,1719600031807,-150.0,0.00045793,30]
[330590502,1719600031841,-150.0,0.00045811,30]
[330590503,1719600031877,-531.3652091,0.00045828,30]
[330590504,1719600031912,-176.54857333,0.00045828,30]
[330590505,1719600031949,-230.41111186,0.00045828,30]
[330590506,1719600031986,-7054.13,0.00045851,30]
[330590507,1719600032023,-7054.13,0.00045851,30]
[330590508,1719600032061,-531.3652091,0.00045878,30]
[330590509,1719600032098,-176.54857333,0.00045878,30]
[330590510,1719600032136,-230.41111186,0.00045878,30]
[330590511,1719600032179,-840.41,0.0004589,30]
[330590512,1719600032232,-150.0,0.00045901,30]
[330590513,1719600032271,-531.3652091,0.00045928,30]
[330590514,1719600032308,-176.54857333,0.00045928,30]
[330590515,1719600032344,-230.41111186,0.00045928,30]
[330590516,1719600032380,-150.0,0.00045941,30]
[330590517,1719600032419,-531.3652091,0.00045978,30]
[330590518,1719600032458,-176.54857333,0.00045978,30]
[330590519,1719600032495,-230.41111186,0.00045978,30]
[330590520,1719600032537,-50000.0,0.00046,36]
[330590521,1719600032575,-2000.0,0.00046,30]
[330590522,1719600032612,-1000.0,0.00046,30]
[330590523,1719600032649,-168.0,0.00046,96]
[330590524,1719600032689,-3000.0,0.00046,120]
[330590525,1719600032729,-3000.0,0.00046,120]
[330590526,1719600032766,-3000.0,0.00046,120]
[330590527,1719600032805,-3000.0,0.00046,120]
[330590528,1719600032843,-3000.0,0.00046,120]
[330590529,1719600032879,-3000.0,0.00046,120]
[330590530,1719600032916,-1000.0,0.00046,120]
[330590531,1719600032955,-188.9489484,0.00046,100]